[Event "Late-Titled-Tuesday-Blitz-April-30-2024"]
[Site "Chess.com"]
[Date "2024.04.30"]
[Round "5"]
[White "Godzillator"]
[Black "FMalexhdez"]
[Result "1/2-1/2"]
[WhiteElo "2405"]
[BlackElo "2255"]
[TimeControl "180+1"]
[EndTime "14:56:43 PDT"]
[Termination "Game drawn - insufficient material"]

1. e4 {[%clk 0:03:00.9]} 1... c5 {[%clk 0:02:59.8]} 2. Nc3 {[%clk 0:02:59.8]}
2... d6 {[%clk 0:02:59.7]} 3. g3 {[%clk 0:03:00.2]} 3... Nc6 {[%clk 0:02:59.7]}
4. Bg2 {[%clk 0:03:00.7]} 4... g6 {[%clk 0:02:59.4]} 5. Nge2 {[%clk 0:03:01]}
5... Bg7 {[%clk 0:02:59.9]} 6. O-O {[%clk 0:03:01.2]} 6... e6 {[%clk 0:02:59.9]}
7. f4 {[%clk 0:03:01.6]} 7... Nge7 {[%clk 0:02:59.4]} 8. d3 {[%clk 0:03:01.5]}
8... f5 {[%clk 0:02:55]} 9. Be3 {[%clk 0:03:00.6]} 9... Nd4 {[%clk 0:02:53.2]}
10. Kh1 {[%clk 0:02:59.9]} 10... O-O {[%clk 0:02:52.1]} 11. exf5 {[%clk
0:02:58.3]} 11... Nexf5 {[%clk 0:02:50.7]} 12. Bg1 {[%clk 0:02:57.9]} 12... Rb8
{[%clk 0:02:47.2]} 13. Nxd4 {[%clk 0:02:58.1]} 13... cxd4 {[%clk 0:02:37.5]} 14.
Ne4 {[%clk 0:02:56.8]} 14... Ne3 {[%clk 0:02:26]} 15. Bxe3 {[%clk 0:02:56.2]}
15... dxe3 {[%clk 0:02:26.1]} 16. c3 {[%clk 0:02:56.3]} 16... Qb6 {[%clk
0:02:24.4]} 17. Qe2 {[%clk 0:02:54.7]} 17... Bd7 {[%clk 0:02:23.4]} 18. Rae1
{[%clk 0:02:51]} 18... Bc6 {[%clk 0:02:07.7]} 19. Ng5 {[%clk 0:02:47.1]} 19...
Rbe8 {[%clk 0:02:03.5]} 20. Bxc6 {[%clk 0:02:44.2]} 20... Qxc6+ {[%clk
0:01:51.4]} 21. Qg2 {[%clk 0:02:44]} 21... h6 {[%clk 0:01:49.7]} 22. Qxc6 {[%clk
0:02:39.6]} 22... bxc6 {[%clk 0:01:48.4]} 23. Nf3 {[%clk 0:02:38.3]} 23... e5
{[%clk 0:01:38.8]} 24. fxe5 {[%clk 0:02:37.1]} 24... Bxe5 {[%clk 0:01:30.1]} 25.
Nxe5 {[%clk 0:02:33.4]} 25... Rxf1+ {[%clk 0:01:27.4]} 26. Rxf1 {[%clk 0:02:33]}
26... Rxe5 {[%clk 0:01:28]} 27. Kg2 {[%clk 0:02:31.7]} 27... Ra5 {[%clk
0:01:05.5]} 28. a3 {[%clk 0:02:28.9]} 28... Rb5 {[%clk 0:01:05.4]} 29. b4 {[%clk
0:02:28.9]} 29... a5 {[%clk 0:01:03.8]} 30. Kf3 {[%clk 0:02:26.2]} 30... axb4
{[%clk 0:01:02.9]} 31. axb4 {[%clk 0:02:26.5]} 31... c5 {[%clk 0:01:02.6]} 32.
bxc5 {[%clk 0:02:16.5]} 32... Rxc5 {[%clk 0:01:01.5]} 33. Kxe3 {[%clk
0:02:08.9]} 33... Rxc3 {[%clk 0:01:00.2]} 34. Rf2 {[%clk 0:02:08.9]} 34... Kg7
{[%clk 0:00:51.9]} 35. Ke4 {[%clk 0:02:08.7]} 35... Rc5 {[%clk 0:00:49.8]} 36.
d4 {[%clk 0:02:08.5]} 36... Rg5 {[%clk 0:00:46.2]} 37. Kd3 {[%clk 0:01:53.3]}
37... h5 {[%clk 0:00:34.4]} 38. Kc4 {[%clk 0:01:52.4]} 38... Ra5 {[%clk
0:00:25.3]} 39. Kb4 {[%clk 0:01:42.5]} 39... Rd5 {[%clk 0:00:24.5]} 40. Rf4
{[%clk 0:01:40.4]} 40... g5 {[%clk 0:00:22.6]} 41. Re4 {[%clk 0:01:39.4]} 41...
Kf6 {[%clk 0:00:20.5]} 42. Kc4 {[%clk 0:01:39.8]} 42... Rf5 {[%clk 0:00:19.9]}
43. d5 {[%clk 0:01:37.7]} 43... Rf2 {[%clk 0:00:18.7]} 44. Re6+ {[%clk
0:01:37.9]} 44... Kf5 {[%clk 0:00:18.7]} 45. Rxd6 {[%clk 0:01:38.2]} 45... Rxh2
{[%clk 0:00:18.7]} 46. Rh6 {[%clk 0:01:34.5]} 46... Kg4 {[%clk 0:00:14.7]} 47.
Kc3 {[%clk 0:01:33.3]} 47... Rh3 {[%clk 0:00:11.4]} 48. d6 {[%clk 0:01:32.7]}
48... Rxg3+ {[%clk 0:00:11.9]} 49. Kc4 {[%clk 0:01:33.2]} 49... Rg1 {[%clk
0:00:11.4]} 50. Kc5 {[%clk 0:01:23.5]} 50... Rd1 {[%clk 0:00:11.2]} 51. Kc6
{[%clk 0:01:23.8]} 51... h4 {[%clk 0:00:11.2]} 52. d7 {[%clk 0:01:24.1]} 52...
Rxd7 {[%clk 0:00:10.8]} 53. Kxd7 {[%clk 0:01:24]} 53... Kg3 {[%clk 0:00:10.2]}
54. Ke6 {[%clk 0:01:24.1]} 54... g4 {[%clk 0:00:10.2]} 55. Kf5 {[%clk
0:01:24.4]} 55... h3 {[%clk 0:00:06.8]} 56. Rg6 {[%clk 0:01:21.6]} 56... h2
{[%clk 0:00:04.9]} 57. Rxg4+ {[%clk 0:01:21.8]} 57... Kf3 {[%clk 0:00:03.4]} 58.
Rh4 {[%clk 0:01:21.5]} 58... Kg2 {[%clk 0:00:03.7]} 59. Kg4 {[%clk 0:01:21]}
59... h1=Q {[%clk 0:00:03.3]} 60. Rxh1 {[%clk 0:01:21]} 60... Kxh1 {[%clk
0:00:03.6]} 1/2-1/2

[Event "Late-Titled-Tuesday-Blitz-April-30-2024"]
[Site "Chess.com"]
[Date "2024.04.30"]
[Round "5"]
[White "nicolasbatista3"]
[Black "hammahamma"]
[Result "1-0"]
[WhiteElo "2432"]
[BlackElo "2273"]
[TimeControl "180+1"]
[EndTime "14:56:44 PDT"]
[Termination "nicolasbatista3 won by checkmate"]

1. d4 {[%clk 0:03:00.9]} 1... d5 {[%clk 0:02:58.2]} 2. c4 {[%clk 0:03:01.5]}
2... dxc4 {[%clk 0:02:57.7]} 3. e3 {[%clk 0:03:00.6]} 3... e5 {[%clk 0:02:53]}
4. Bxc4 {[%clk 0:02:56.9]} 4... exd4 {[%clk 0:02:52.4]} 5. exd4 {[%clk
0:02:50.7]} 5... Nf6 {[%clk 0:02:51.7]} 6. Ne2 {[%clk 0:02:46.5]} 6... Bd6
{[%clk 0:02:39.8]} 7. Nbc3 {[%clk 0:02:43.1]} 7... a6 {[%clk 0:02:33.3]} 8. Bg5
{[%clk 0:02:42.3]} 8... h6 {[%clk 0:02:30.2]} 9. Bh4 {[%clk 0:02:42.2]} 9... O-O
{[%clk 0:02:27]} 10. Qd2 {[%clk 0:02:39.1]} 10... Nc6 {[%clk 0:02:20.5]} 11. Bg3
{[%clk 0:02:36.9]} 11... Bf5 {[%clk 0:02:14.9]} 12. O-O {[%clk 0:02:21.4]} 12...
b5 {[%clk 0:02:03.1]} 13. Bb3 {[%clk 0:02:17]} 13... Na5 {[%clk 0:01:56.1]} 14.
Rfd1 {[%clk 0:02:07.4]} 14... Nxb3 {[%clk 0:01:46.3]} 15. axb3 {[%clk 0:02:07]}
15... Bxg3 {[%clk 0:01:30.8]} 16. Nxg3 {[%clk 0:02:06.7]} 16... Bg6 {[%clk
0:01:31]} 17. Nce2 {[%clk 0:01:43.8]} 17... Qd6 {[%clk 0:01:18.6]} 18. Nf4
{[%clk 0:01:43.1]} 18... Bh7 {[%clk 0:01:18.9]} 19. Rac1 {[%clk 0:01:36.7]}
19... Rfe8 {[%clk 0:00:59.1]} 20. h3 {[%clk 0:01:11.7]} 20... Ne4 {[%clk
0:00:57.4]} 21. Nxe4 {[%clk 0:01:09.1]} 21... Rxe4 {[%clk 0:00:58.3]} 22. Nh5
{[%clk 0:00:58.5]} 22... Rd8 {[%clk 0:00:52]} 23. d5 {[%clk 0:00:58.2]} 23...
Qe5 {[%clk 0:00:38]} 24. Ng3 {[%clk 0:00:55.4]} 24... Rf4 {[%clk 0:00:16.5]} 25.
Re1 {[%clk 0:00:42]} 25... Qd4 {[%clk 0:00:15.5]} 26. Qxd4 {[%clk 0:00:35.7]}
26... Rxd4 {[%clk 0:00:16.4]} 27. Rxc7 {[%clk 0:00:35.9]} 27... R4xd5 {[%clk
0:00:16.7]} 28. Ree7 {[%clk 0:00:33.2]} 28... Bg6 {[%clk 0:00:17.1]} 29. h4
{[%clk 0:00:29.7]} 29... h5 {[%clk 0:00:16.5]} 30. Rc6 {[%clk 0:00:28.3]} 30...
Rd1+ {[%clk 0:00:16]} 31. Kh2 {[%clk 0:00:28.1]} 31... R1d2 {[%clk 0:00:15.8]}
32. Ne2 {[%clk 0:00:13.8]} 32... Rxb2 {[%clk 0:00:15.5]} 33. Nf4 {[%clk
0:00:14.4]} 33... Rdd2 {[%clk 0:00:14.9]} 34. Nxg6 {[%clk 0:00:14.2]} 34... Rxf2
{[%clk 0:00:13.2]} 35. Re8+ {[%clk 0:00:13]} 35... Kh7 {[%clk 0:00:10.9]} 36.
Rh8# {[%clk 0:00:13.9]} 1-0

[Event "Late-Titled-Tuesday-Blitz-April-30-2024"]
[Site "Chess.com"]
[Date "2024.04.30"]
[Round "5"]
[White "egnfanclub"]
[Black "TheMagician"]
[Result "1-0"]
[WhiteElo "2368"]
[BlackElo "2126"]
[TimeControl "180+1"]
[EndTime "14:56:45 PDT"]
[Termination "egnfanclub won on time"]

1. e4 {[%clk 0:03:00.9]} 1... e5 {[%clk 0:02:56.1]} 2. Nf3 {[%clk 0:03:00]} 2...
Nc6 {[%clk 0:02:55.9]} 3. Bc4 {[%clk 0:02:59]} 3... Be7 {[%clk 0:02:53]} 4. d4
{[%clk 0:02:56.8]} 4... exd4 {[%clk 0:02:51.5]} 5. c3 {[%clk 0:02:56.8]} 5... d6
{[%clk 0:02:50.2]} 6. Qb3 {[%clk 0:02:54.8]} 6... Na5 {[%clk 0:02:41.5]} 7.
Bxf7+ {[%clk 0:02:54.1]} 7... Kf8 {[%clk 0:02:41.1]} 8. Qa4 {[%clk 0:02:47.3]}
8... Kxf7 {[%clk 0:02:35.7]} 9. Qxa5 {[%clk 0:02:47.2]} 9... dxc3 {[%clk
0:02:17.8]} 10. Nxc3 {[%clk 0:02:42.4]} 10... Nf6 {[%clk 0:02:09.6]} 11. Ng5+
{[%clk 0:02:30.3]} 11... Kg6 {[%clk 0:01:59.3]} 12. h4 {[%clk 0:02:23.7]} 12...
c6 {[%clk 0:01:48.4]} 13. Qa4 {[%clk 0:02:14.5]} 13... h6 {[%clk 0:01:42.3]} 14.
Nf3 {[%clk 0:02:06.4]} 14... Kh7 {[%clk 0:01:24]} 15. Be3 {[%clk 0:01:59.2]}
15... Ng4 {[%clk 0:01:21.4]} 16. O-O-O {[%clk 0:01:48.8]} 16... Nxe3 {[%clk
0:01:19.1]} 17. fxe3 {[%clk 0:01:49.7]} 17... b5 {[%clk 0:01:12.3]} 18. Qd4
{[%clk 0:01:46.5]} 18... Qb6 {[%clk 0:01:10.4]} 19. h5 {[%clk 0:01:32.5]} 19...
Rf8 {[%clk 0:00:57.6]} 20. e5 {[%clk 0:01:25.7]} 20... Qxd4 {[%clk 0:00:54.9]}
21. exd4 {[%clk 0:01:17.4]} 21... Bg4 {[%clk 0:00:52.4]} 22. Rdf1 {[%clk
0:01:11.8]} 22... Bxf3 {[%clk 0:00:46.6]} 23. Rxf3 {[%clk 0:01:09.5]} 23... Rxf3
{[%clk 0:00:45.6]} 24. gxf3 {[%clk 0:01:10.4]} 24... d5 {[%clk 0:00:45.8]} 25.
Kd2 {[%clk 0:01:02.1]} 25... Bb4 {[%clk 0:00:41.5]} 26. Ke3 {[%clk 0:01:01.7]}
26... Bxc3 {[%clk 0:00:40.3]} 27. bxc3 {[%clk 0:01:02.6]} 27... g5 {[%clk
0:00:30.6]} 28. hxg6+ {[%clk 0:01:00.8]} 28... Kxg6 {[%clk 0:00:30.8]} 29. f4
{[%clk 0:01:01.7]} 29... Rh8 {[%clk 0:00:25.1]} 30. Kf3 {[%clk 0:00:55.9]} 30...
h5 {[%clk 0:00:24.6]} 31. Rg1+ {[%clk 0:00:54.9]} 31... Kf5 {[%clk 0:00:18.9]}
32. Rg5+ {[%clk 0:00:54.3]} 32... Ke6 {[%clk 0:00:19]} 33. f5+ {[%clk
0:00:54.9]} 33... Kf7 {[%clk 0:00:18.7]} 34. e6+ {[%clk 0:00:51.1]} 34... Kf6
{[%clk 0:00:18.5]} 35. Kf4 {[%clk 0:00:51.7]} 35... h4 {[%clk 0:00:17.8]} 36.
Rg6+ {[%clk 0:00:51.5]} 36... Ke7 {[%clk 0:00:18.2]} 37. Ke5 {[%clk 0:00:50.4]}
37... h3 {[%clk 0:00:16.7]} 38. f6+ {[%clk 0:00:47.9]} 38... Kf8 {[%clk
0:00:11.2]} 39. e7+ {[%clk 0:00:43.8]} 39... Ke8 {[%clk 0:00:05.6]} 40. Ke6
{[%clk 0:00:43.3]} 1-0

[Event "Late-Titled-Tuesday-Blitz-April-30-2024"]
[Site "Chess.com"]
[Date "2024.04.30"]
[Round "5"]
[White "penguingm1"]
[Black "ChristopherYoo"]
[Result "1-0"]
[WhiteElo "2876"]
[BlackElo "3017"]
[TimeControl "180+1"]
[EndTime "14:56:52 PDT"]
[Termination "penguingm1 won on time"]

1. d4 {[%clk 0:03:00.9]} 1... d5 {[%clk 0:02:34.4]} 2. Nf3 {[%clk 0:02:59.7]}
2... Nf6 {[%clk 0:02:27.5]} 3. Bf4 {[%clk 0:02:59.9]} 3... c5 {[%clk 0:02:26.1]}
4. e3 {[%clk 0:03:00]} 4... Bg4 {[%clk 0:02:23.5]} 5. Nbd2 {[%clk 0:02:59.5]}
5... cxd4 {[%clk 0:02:22.3]} 6. exd4 {[%clk 0:02:59.8]} 6... Nc6 {[%clk
0:02:22.3]} 7. c3 {[%clk 0:03:00]} 7... e6 {[%clk 0:02:14.4]} 8. Qb3 {[%clk
0:03:00]} 8... Bd6 {[%clk 0:01:52]} 9. Qxb7 {[%clk 0:02:52.5]} 9... Bxf4 {[%clk
0:01:30]} 10. Qxc6+ {[%clk 0:02:51.9]} 10... Kf8 {[%clk 0:01:30.3]} 11. g3
{[%clk 0:02:37.7]} 11... Bxd2+ {[%clk 0:01:20]} 12. Nxd2 {[%clk 0:02:37.5]}
12... Rb8 {[%clk 0:01:19.8]} 13. Qc5+ {[%clk 0:02:00.9]} 13... Qe7 {[%clk
0:01:19.6]} 14. f3 {[%clk 0:01:47.8]} 14... Bf5 {[%clk 0:01:16.4]} 15. b4 {[%clk
0:01:35.7]} 15... Ne8 {[%clk 0:01:04.8]} 16. Nb3 {[%clk 0:01:14.7]} 16... Nd6
{[%clk 0:01:03.7]} 17. Na5 {[%clk 0:01:15]} 17... Rc8 {[%clk 0:01:02.5]} 18. Nc6
{[%clk 0:01:15.3]} 18... Qc7 {[%clk 0:00:58]} 19. Nxa7 {[%clk 0:01:07.5]} 19...
Qxc5 {[%clk 0:00:21.6]} 20. dxc5 {[%clk 0:01:08.4]} 20... Ra8 {[%clk 0:00:18.4]}
21. Nc6 {[%clk 0:00:57.6]} 21... Nc4 {[%clk 0:00:18.5]} 22. a4 {[%clk
0:00:49.8]} 22... g5 {[%clk 0:00:16.2]} 23. a5 {[%clk 0:00:34.3]} 23... Kg7
{[%clk 0:00:15.6]} 24. Bxc4 {[%clk 0:00:33.2]} 24... dxc4 {[%clk 0:00:15]} 25.
Kf2 {[%clk 0:00:33.8]} 25... Rhc8 {[%clk 0:00:13.9]} 26. b5 {[%clk 0:00:31.7]}
26... e5 {[%clk 0:00:13.1]} 27. Rhd1 {[%clk 0:00:31.1]} 27... e4 {[%clk
0:00:12.3]} 28. Rd6 {[%clk 0:00:21.8]} 28... exf3 {[%clk 0:00:11.2]} 29. Kxf3
{[%clk 0:00:22.7]} 29... Re8 {[%clk 0:00:05.7]} 30. Kf2 {[%clk 0:00:22.1]} 30...
Bg4 {[%clk 0:00:04.5]} 31. Nd4 {[%clk 0:00:21.8]} 31... Re5 {[%clk 0:00:02.6]}
32. c6 {[%clk 0:00:21.4]} 32... Rae8 {[%clk 0:00:02.9]} 33. c7 {[%clk
0:00:21.9]} 33... Rc5 {[%clk 0:00:02]} 34. b6 {[%clk 0:00:21.8]} 34... Ree5
{[%clk 0:00:01.8]} 35. a6 {[%clk 0:00:20.8]} 35... Ra5 {[%clk 0:00:02.5]} 36.
Rxa5 {[%clk 0:00:20.4]} 36... Rxa5 {[%clk 0:00:03.4]} 37. b7 {[%clk 0:00:19.7]}
37... Ra2+ {[%clk 0:00:04.1]} 38. Ke3 {[%clk 0:00:20.3]} 1-0

[Event "Late-Titled-Tuesday-Blitz-April-30-2024"]
[Site "Chess.com"]
[Date "2024.04.30"]
[Round "5"]
[White "BeautiFullMindChess"]
[Black "duone"]
[Result "0-1"]
[WhiteElo "2245"]
[BlackElo "2418"]
[TimeControl "180+1"]
[EndTime "14:56:54 PDT"]
[Termination "duone won on time"]

1. e4 {[%clk 0:03:00.9]} 1... c5 {[%clk 0:02:52]} 2. Nf3 {[%clk 0:03:00.4]} 2...
d6 {[%clk 0:02:50.2]} 3. Bc4 {[%clk 0:02:59.5]} 3... Nf6 {[%clk 0:02:48.4]} 4.
d3 {[%clk 0:02:59.7]} 4... e6 {[%clk 0:02:45.8]} 5. Bb3 {[%clk 0:02:59.4]} 5...
Be7 {[%clk 0:02:45.2]} 6. c3 {[%clk 0:02:59.4]} 6... d5 {[%clk 0:02:44.6]} 7. e5
{[%clk 0:02:58.8]} 7... Nfd7 {[%clk 0:02:44.4]} 8. d4 {[%clk 0:02:59]} 8... Nc6
{[%clk 0:02:44.5]} 9. O-O {[%clk 0:02:58.5]} 9... O-O {[%clk 0:02:43.6]} 10. Re1
{[%clk 0:02:48.9]} 10... f6 {[%clk 0:02:41.9]} 11. exf6 {[%clk 0:02:47.8]} 11...
Nxf6 {[%clk 0:02:41.7]} 12. Nbd2 {[%clk 0:02:46.5]} 12... Qc7 {[%clk 0:02:28.1]}
13. Nf1 {[%clk 0:02:45]} 13... Bd7 {[%clk 0:02:21]} 14. Ng3 {[%clk 0:02:44]}
14... Nd8 {[%clk 0:02:08.2]} 15. h3 {[%clk 0:02:25.8]} 15... Be8 {[%clk
0:02:06.4]} 16. Ng5 {[%clk 0:02:10.5]} 16... Qb6 {[%clk 0:01:53.1]} 17. Qe2
{[%clk 0:01:47.4]} 17... Bf7 {[%clk 0:01:40.2]} 18. Be3 {[%clk 0:01:33.6]} 18...
c4 {[%clk 0:01:37.3]} 19. Bc2 {[%clk 0:01:33.5]} 19... h6 {[%clk 0:01:36.7]} 20.
Nxf7 {[%clk 0:01:25.3]} 20... Nxf7 {[%clk 0:01:37.6]} 21. b3 {[%clk 0:01:17.2]}
21... Nd6 {[%clk 0:01:34.9]} 22. Bf4 {[%clk 0:01:04.6]} 22... cxb3 {[%clk
0:01:34.7]} 23. axb3 {[%clk 0:01:04.2]} 23... Rfe8 {[%clk 0:01:27.1]} 24. Qxe6+
{[%clk 0:01:03.4]} 24... Kh8 {[%clk 0:01:26.8]} 25. Bg6 {[%clk 0:00:54.6]} 25...
Bf8 {[%clk 0:01:19.9]} 26. Bxe8 {[%clk 0:00:46]} 26... Rxe8 {[%clk 0:01:19.9]}
27. Nf5 {[%clk 0:00:28.4]} 27... Rxe6 {[%clk 0:01:14]} 28. Rxe6 {[%clk
0:00:29.3]} 28... Nfe4 {[%clk 0:01:04.1]} 29. Nxd6 {[%clk 0:00:18.9]} 29... Nxd6
{[%clk 0:01:00.6]} 30. Be5 {[%clk 0:00:15.6]} 30... a6 {[%clk 0:00:56.3]} 31.
Rxh6+ {[%clk 0:00:15]} 31... Kg8 {[%clk 0:00:56.2]} 32. Re6 {[%clk 0:00:15.2]}
32... Qd8 {[%clk 0:00:55.7]} 33. Re1 {[%clk 0:00:13.1]} 33... Nf7 {[%clk
0:00:56]} 34. Bg3 {[%clk 0:00:12.6]} 34... Qa5 {[%clk 0:00:50.7]} 35. R1e3
{[%clk 0:00:11.6]} 35... Qa1+ {[%clk 0:00:50.1]} 36. Kh2 {[%clk 0:00:12.1]}
36... Qb2 {[%clk 0:00:47.8]} 37. b4 {[%clk 0:00:11.3]} 37... Ng5 {[%clk
0:00:40.5]} 38. Re8 {[%clk 0:00:11]} 38... Kf7 {[%clk 0:00:35.6]} 39. f3 {[%clk
0:00:08.7]} 39... Ne4 {[%clk 0:00:33.6]} 40. Rb8 {[%clk 0:00:07.2]} 40... Nxg3
{[%clk 0:00:33]} 41. Rxb7+ {[%clk 0:00:07.2]} 41... Kg8 {[%clk 0:00:32.2]} 42.
Kxg3 {[%clk 0:00:07.1]} 42... Bd6+ {[%clk 0:00:32.7]} 43. Kh4 {[%clk 0:00:03.5]}
43... Qf2+ {[%clk 0:00:32.4]} 44. Kg5 {[%clk 0:00:00.7]} 44... Qxe3+ {[%clk
0:00:32.3]} 0-1

[Event "Late-Titled-Tuesday-Blitz-April-30-2024"]
[Site "Chess.com"]
[Date "2024.04.30"]
[Round "5"]
[White "HipsterChess22"]
[Black "Kombinator01"]
[Result "0-1"]
[WhiteElo "2185"]
[BlackElo "2385"]
[TimeControl "180+1"]
[EndTime "14:56:55 PDT"]
[Termination "Kombinator01 won on time"]

1. d4 {[%clk 0:02:59.6]} 1... Nf6 {[%clk 0:02:34.5]} 2. Nc3 {[%clk 0:02:57.4]}
2... d5 {[%clk 0:02:33.7]} 3. Bf4 {[%clk 0:02:56.7]} 3... c5 {[%clk 0:02:27.5]}
4. e3 {[%clk 0:02:53.9]} 4... a6 {[%clk 0:02:27.2]} 5. dxc5 {[%clk 0:02:52.5]}
5... Nc6 {[%clk 0:02:24.2]} 6. a3 {[%clk 0:02:46.4]} 6... e5 {[%clk 0:02:23]} 7.
Bg5 {[%clk 0:02:46.4]} 7... d4 {[%clk 0:02:08.4]} 8. Ne4 {[%clk 0:02:43.7]} 8...
Be7 {[%clk 0:01:48.6]} 9. Bxf6 {[%clk 0:02:34.4]} 9... gxf6 {[%clk 0:01:47.4]}
10. Nd6+ {[%clk 0:02:22.2]} 10... Bxd6 {[%clk 0:01:46]} 11. cxd6 {[%clk
0:02:23.1]} 11... Qxd6 {[%clk 0:01:46.9]} 12. Nf3 {[%clk 0:02:19.4]} 12... Bg4
{[%clk 0:01:43]} 13. Be2 {[%clk 0:02:17.7]} 13... Bxf3 {[%clk 0:01:37.8]} 14.
Bxf3 {[%clk 0:02:16.6]} 14... O-O-O {[%clk 0:01:38.5]} 15. Bxc6 {[%clk
0:01:51.8]} 15... Qxc6 {[%clk 0:01:37.1]} 16. Qg4+ {[%clk 0:01:48.1]} 16... Kb8
{[%clk 0:01:34.6]} 17. O-O {[%clk 0:01:41.1]} 17... Rhg8 {[%clk 0:01:32.1]} 18.
Qh3 {[%clk 0:01:41.1]} 18... dxe3 {[%clk 0:01:27.3]} 19. fxe3 {[%clk 0:01:36.1]}
19... Rd2 {[%clk 0:01:27.3]} 20. Rf2 {[%clk 0:01:18]} 20... Rxf2 {[%clk
0:01:25.1]} 21. Kxf2 {[%clk 0:01:18.9]} 21... Qxc2+ {[%clk 0:01:25.3]} 22. Kg1
{[%clk 0:01:17.4]} 22... Qe2 {[%clk 0:01:07.6]} 23. Rf1 {[%clk 0:01:09.5]} 23...
Rd8 {[%clk 0:01:02.5]} 24. Qf3 {[%clk 0:01:03.1]} 24... Qxb2 {[%clk 0:00:39.3]}
25. Qxf6 {[%clk 0:00:56.6]} 25... Rd2 {[%clk 0:00:37.7]} 26. Qf3 {[%clk
0:00:45.4]} 26... Ka7 {[%clk 0:00:31.6]} 27. a4 {[%clk 0:00:44.2]} 27... Qc2
{[%clk 0:00:28.7]} 28. a5 {[%clk 0:00:42.1]} 28... Qc3 {[%clk 0:00:26.3]} 29.
Rb1 {[%clk 0:00:40.3]} 29... Rd7 {[%clk 0:00:23.3]} 30. e4 {[%clk 0:00:22.6]}
30... Qxa5 {[%clk 0:00:18.6]} 31. Qe3+ {[%clk 0:00:15.6]} 31... b6 {[%clk
0:00:18.4]} 32. Rc1 {[%clk 0:00:11.2]} 32... Qa4 {[%clk 0:00:17.4]} 33. Kh1
{[%clk 0:00:07.7]} 33... Rd1+ {[%clk 0:00:16.2]} 0-1

[Event "Late-Titled-Tuesday-Blitz-April-30-2024"]
[Site "Chess.com"]
[Date "2024.04.30"]
[Round "5"]
[White "chessisveryfun1264"]
[Black "schachlana"]
[Result "1-0"]
[WhiteElo "2626"]
[BlackElo "2375"]
[TimeControl "180+1"]
[EndTime "14:57:00 PDT"]
[Termination "chessisveryfun1264 won by resignation"]

1. Nf3 {[%clk 0:03:00.9]} 1... Nf6 {[%clk 0:02:59.8]} 2. g3 {[%clk 0:03:00.7]}
2... g6 {[%clk 0:03:00.7]} 3. Bg2 {[%clk 0:03:01.2]} 3... Bg7 {[%clk 0:03:01.6]}
4. d4 {[%clk 0:03:01.8]} 4... d6 {[%clk 0:03:01.7]} 5. O-O {[%clk 0:03:02.4]}
5... O-O {[%clk 0:03:02.6]} 6. c4 {[%clk 0:03:02.8]} 6... Nc6 {[%clk 0:03:01]}
7. Nc3 {[%clk 0:02:53.8]} 7... e5 {[%clk 0:02:57.4]} 8. dxe5 {[%clk 0:02:52.6]}
8... dxe5 {[%clk 0:02:58.3]} 9. Bg5 {[%clk 0:02:51.2]} 9... Qxd1 {[%clk
0:02:56.5]} 10. Rfxd1 {[%clk 0:02:50.9]} 10... Be6 {[%clk 0:02:54.7]} 11. Bxf6
{[%clk 0:02:47.7]} 11... Bxf6 {[%clk 0:02:55.6]} 12. Nd5 {[%clk 0:02:47.8]}
12... Bxd5 {[%clk 0:02:42.7]} 13. cxd5 {[%clk 0:02:48.7]} 13... Nd4 {[%clk
0:02:41.9]} 14. Nxd4 {[%clk 0:02:34.3]} 14... exd4 {[%clk 0:02:42.8]} 15. Rac1
{[%clk 0:02:34.3]} 15... Rfe8 {[%clk 0:01:54.2]} 16. Rxc7 {[%clk 0:02:31]} 16...
Rxe2 {[%clk 0:01:54]} 17. Rxb7 {[%clk 0:02:31.9]} 17... Rd8 {[%clk 0:01:48.2]}
18. Kf1 {[%clk 0:02:22.1]} 18... Rc2 {[%clk 0:01:46.8]} 19. Be4 {[%clk
0:02:21.7]} 19... d3 {[%clk 0:01:40.3]} 20. Rxd3 {[%clk 0:02:15.1]} 20... Rxb2
{[%clk 0:01:38.3]} 21. Rxa7 {[%clk 0:02:13.5]} 21... Rd6 {[%clk 0:01:29.4]} 22.
a4 {[%clk 0:02:08.4]} 22... Rb4 {[%clk 0:01:23.3]} 23. Bg2 {[%clk 0:02:02.8]}
23... Bd4 {[%clk 0:01:21.1]} 24. Ra8+ {[%clk 0:01:54]} 24... Kg7 {[%clk
0:01:21.4]} 25. Rd2 {[%clk 0:01:50.3]} 25... Bc3 {[%clk 0:01:15.9]} 26. Rc2
{[%clk 0:01:46.3]} 26... Rb3 {[%clk 0:00:42]} 27. Ke2 {[%clk 0:01:42.3]} 27...
Rd7 {[%clk 0:00:38.5]} 28. Re8 {[%clk 0:01:30.7]} 28... Ra3 {[%clk 0:00:34.9]}
29. Re3 {[%clk 0:01:19.3]} 29... Bb4 {[%clk 0:00:27.9]} 30. Rxa3 {[%clk
0:01:18.9]} 30... Bxa3 {[%clk 0:00:28.8]} 31. Ra2 {[%clk 0:01:14.1]} 31... Bc5
{[%clk 0:00:28.4]} 32. a5 {[%clk 0:01:14.5]} 32... Ba7 {[%clk 0:00:29.1]} 33. a6
{[%clk 0:01:14.5]} 33... Rd6 {[%clk 0:00:26.8]} 34. Kd3 {[%clk 0:01:14.3]} 34...
Kf6 {[%clk 0:00:26]} 35. f4 {[%clk 0:01:06.5]} 35... g5 {[%clk 0:00:24.8]} 36.
fxg5+ {[%clk 0:01:05.5]} 36... Kxg5 {[%clk 0:00:25.7]} 37. Ke4 {[%clk
0:01:02.7]} 37... Kf6 {[%clk 0:00:22.4]} 38. Bf1 {[%clk 0:00:56.8]} 38... Ke7
{[%clk 0:00:18.7]} 39. Rb2 {[%clk 0:00:56.7]} 39... f5+ {[%clk 0:00:16.4]} 40.
Ke5 {[%clk 0:00:55.6]} 40... Rd7 {[%clk 0:00:10.8]} 41. Rb5 {[%clk 0:00:52.5]}
41... Bg1 {[%clk 0:00:08.9]} 42. h4 {[%clk 0:00:43.7]} 42... Bf2 {[%clk
0:00:08.7]} 43. Rb3 {[%clk 0:00:43.6]} 43... Ba7 {[%clk 0:00:05]} 44. Bb5 {[%clk
0:00:42.6]} 44... Bb8+ {[%clk 0:00:04.5]} 45. Kd4 {[%clk 0:00:38.8]} 45... Rd6
{[%clk 0:00:04.8]} 46. Bc6 {[%clk 0:00:38.1]} 46... Ba7+ {[%clk 0:00:05.3]} 47.
Ke5 {[%clk 0:00:38.3]} 47... Rd8 {[%clk 0:00:01.7]} 48. Rb7+ {[%clk 0:00:37.7]}
48... Kf8 {[%clk 0:00:02.4]} 49. Rxa7 {[%clk 0:00:36.7]} 1-0